fUST/lending_fUST_20251002
["ID","MTS","AMOUNT","RATE_DAILY","PERIOD"]
[388805484,1759375838984,-151.0,0.00020924,2]
[388805485,1759375838994,-151.0,0.00020924,2]
[388805486,1759375839004,-151.0,0.00020924,2]
[388805487,1759375839139,-151.0,0.00020924,2]
[388805488,1759375839151,-238.844431,0.00020924,2]
[388805489,1759375839162,-151.699416,0.00020924,2]
[388805490,1759375839172,-151.0,0.00020924,2]
[388805491,1759375839182,-151.0,0.00020924,2]
[388805492,1759375839192,-151.0,0.00020924,2]
[388805493,1759375839202,-151.0,0.00020924,2]
[388805494,1759375839213,-151.0,0.00020924,2]
[388805495,1759375839223,-151.0,0.00020924,2]
[388805496,1759375839234,-224.470643,0.00020924,2]
[388805497,1759375839244,-151.74107027,0.00020924,2]
[388805498,1759375839255,-151.0,0.00020924,2]
[388805499,1759375839265,-151.0,0.00020924,2]
[388805500,1759375839275,-151.0,0.00020924,2]
[388805501,1759375839284,-151.0,0.00020924,2]
[388805502,1759375839294,-152.01803034,0.00020924,2]
[388805504,1759375839303,-151.0,0.00020924,2]
[388805506,1759375839312,-151.0,0.00020924,2]
[388805508,1759375839321,-151.0,0.00020924,2]
[388805510,1759375839330,-151.0,0.00020924,2]
[388805512,1759375839340,-151.0,0.00020924,2]
[388805514,1759375839350,-151.0,0.00020924,2]
[388805515,1759375839359,-151.0,0.00020924,2]
[388805517,1759375839368,-151.0,0.00020924,2]
[388805518,1759375839377,-151.0,0.00020924,2]
[388805520,1759375839387,-184.264457,0.00020924,2]
[388805521,1759375839398,-412.068089,0.00020924,2]
[388805522,1759375839407,-412.068089,0.00020924,2]
[388805523,1759375839418,-412.068089,0.00020924,2]
[388805525,1759375839427,-412.068089,0.00020924,2]
[388805527,1759375839436,-412.068089,0.00020924,2]
[388805528,1759375839445,-412.068089,0.00020924,2]
[388805530,1759375839454,-412.068089,0.00020924,2]
[388805532,1759375839464,-412.068089,0.00020924,2]
[388805534,1759375839472,-412.068089,0.00020924,2]
[388805536,1759375839481,-412.068089,0.00020924,2]
[388805538,1759375839493,-151.588254,0.00020924,2]
[388805540,1759375839504,-412.068089,0.00020924,2]
[388805543,1759375839513,-412.068089,0.00020924,2]
[388805544,1759375839523,-412.068089,0.00020924,2]
[388805546,1759375839532,-412.068089,0.00020924,2]
[388805549,1759375839542,-412.068089,0.00020924,2]
[388805550,1759375839551,-412.068089,0.00020924,2]
[388805552,1759375839560,-412.068089,0.00020924,2]
[388805555,1759375839570,-412.068089,0.00020924,2]
[388805556,1759375839580,-412.068089,0.00020924,2]
[388805558,1759375839589,-412.068093,0.00020924,2]
[388805560,1759375839599,-151.0,0.00020924,2]
[388805562,1759375839608,-153.589604,0.00020924,2]
[388805564,1759375839617,-208.767533,0.00020924,2]
[388805566,1759375839628,-208.767533,0.00020924,2]
[388805568,1759375839637,-208.767533,0.00020924,2]
[388805570,1759375839646,-208.767533,0.00020924,2]
[388805572,1759375839655,-208.767533,0.00020924,2]
[388805574,1759375839665,-208.767533,0.00020924,2]
[388805576,1759375839675,-208.767533,0.00020924,2]
[388805578,1759375839684,-208.767533,0.00020924,2]
[388805580,1759375839694,-208.767533,0.00020924,2]
[388805582,1759375839703,-208.767533,0.00020924,2]
[388805584,1759375839712,-208.767533,0.00020924,2]
[388805586,1759375839722,-208.767533,0.00020924,2]
[388805588,1759375839731,-208.767533,0.00020924,2]
[388805590,1759375839740,-208.767533,0.00020924,2]
[388805592,1759375839748,-208.767533,0.00020924,2]
[388805594,1759375839758,-208.767533,0.00020924,2]
[388805596,1759375839767,-208.767533,0.00020924,2]
[388805598,1759375839776,-208.767533,0.00020924,2]
[388805600,1759375839785,-208.767533,0.00020924,2]
[388805602,1759375839794,-208.76753,0.00020924,2]
[388805604,1759375839803,-151.0,0.00020924,2]
[388805606,1759375839812,-151.0,0.00020924,2]
[388805608,1759375839821,-151.0,0.00020924,2]
[388805610,1759375839830,-151.0,0.00020924,2]
[388805612,1759375839839,-151.0,0.00020924,2]
[388805614,1759375839848,-151.0,0.00020924,2]
[388805616,1759375839857,-155.354289,0.00020924,2]
[388805618,1759375839866,-151.0,0.00020924,2]
[388805620,1759375839876,-151.0,0.00020924,2]
[388805622,1759375839890,-151.0,0.00020924,2]
[388805624,1759375839899,-151.0,0.00020924,2]
[388805627,1759375839908,-151.0,0.00020924,2]
[388805629,1759375839917,-151.0,0.00020924,2]
[388805631,1759375839926,-278.791512,0.00020924,2]
[388805633,1759375839934,-151.0,0.00020924,2]
[388805635,1759375839945,-151.0,0.00020924,2]
[388805637,1759375839957,-152.213345,0.00020924,2]
[388805639,1759375839966,-280.073956,0.00020924,2]
[388805641,1759375839975,-151.0,0.00020924,2]
[388805643,1759375839984,-151.0,0.00020924,2]
[388805645,1759375839993,-153.455381,0.00020924,2]
[388805647,1759375840003,-151.0,0.00020924,2]
[388805649,1759375840011,-210.511878,0.00020924,2]
[388805651,1759375840021,-152.16824726,0.00020924,2]
[388805653,1759375840030,-151.0,0.00020924,2]
[388805654,1759375840039,-157.551322,0.00020924,2]
[388805655,1759375840048,-151.0,0.00020924,2]
[388805656,1759375840056,-151.0,0.00020924,2]
[388805657,1759375840065,-151.0,0.00020924,2]
[388805658,1759375840074,-500.0,0.00020924,2]
[388805659,1759375840083,-304.320223,0.00020924,2]
[388805660,1759375840091,-304.320223,0.00020924,2]
[388805661,1759375840100,-304.320223,0.00020924,2]
[388805662,1759375840109,-304.320223,0.00020924,2]
[388805663,1759375840118,-304.320223,0.00020924,2]
[388805664,1759375840127,-304.320223,0.00020924,2]
[388805665,1759375840136,-304.320223,0.00020924,2]
[388805666,1759375840144,-304.320223,0.00020924,2]
[388805667,1759375840154,-304.320223,0.00020924,2]
[388805668,1759375840163,-152.9066288,0.00020924,2]
[388805669,1759375840172,-304.320223,0.00020924,2]
[388805670,1759375840181,-304.320223,0.00020924,2]
[388805671,1759375840190,-304.320223,0.00020924,2]
[388805672,1759375840199,-151.0,0.00020924,2]
[388805673,1759375840207,-304.320223,0.00020924,2]
[388805674,1759375840216,-304.320223,0.00020924,2]
[388805675,1759375840226,-304.320223,0.00020924,2]
[388805676,1759375840234,-304.320223,0.00020924,2]
[388805677,1759375840243,-304.320223,0.00020924,2]
[388805678,1759375840252,-304.320223,0.00020924,2]
[388805679,1759375840261,-304.320223,0.00020924,2]
[388805680,1759375840269,-304.320217,0.00020924,2]
[388805681,1759375840278,-151.0,0.00020924,2]
[388805682,1759375840287,-151.0,0.00020924,2]
[388805683,1759375840296,-151.0,0.00020924,2]
[388805684,1759375840305,-156.176195,0.00020924,2]
[388805685,1759375840314,-151.0,0.00020924,2]
[388805686,1759375840323,-151.0,0.00020924,2]
[388805687,1759375840331,-151.0,0.00020924,2]
[388805688,1759375840340,-215.486704,0.00020924,2]
[388805689,1759375840349,-151.0,0.00020924,2]
[388805690,1759375840358,-151.0,0.00020924,2]
[388805691,1759375840367,-151.0,0.00020924,2]
[388805692,1759375840375,-220.302791,0.00020924,2]
[388805693,1759375840384,-151.0,0.00020924,2]
[388805694,1759375840393,-151.0,0.00020924,2]
[388805695,1759375840402,-241.6,0.00020924,2]
[388805697,1759375840411,-151.0,0.00020924,2]
[388805699,1759375840420,-151.0,0.00020924,2]
[388805701,1759375840428,-154.075516,0.00020924,2]
[388805703,1759375840437,-151.0,0.00020924,2]
[388805705,1759375840446,-151.0,0.00020924,2]
[388805707,1759375840455,-151.0,0.00020924,2]
[388805709,1759375840465,-151.0,0.00020924,2]
[388805711,1759375840474,-151.0,0.00020924,2]
[388805713,1759375840482,-236.707441,0.00020924,2]
[388805715,1759375840492,-153.679561,0.00020924,2]
[388805717,1759375840502,-151.0,0.00020924,2]
[388805719,1759375840513,-151.0,0.00020924,2]
[388805721,1759375840522,-151.0,0.00020924,2]
[388805722,1759375840531,-151.0,0.00020924,2]
[388805724,1759375840541,-151.0,0.00020924,2]
[388805726,1759375840551,-151.0,0.00020924,2]
[388805728,1759375840560,-151.0,0.00020924,2]
[388805730,1759375840569,-151.0,0.00020924,2]
[388805732,1759375840578,-151.0,0.00020924,2]
[388805734,1759375840590,-151.0,0.00020924,2]
[388805736,1759375840599,-151.0,0.00020924,2]
[388805738,1759375840608,-151.0,0.00020924,2]
[388805740,1759375840618,-151.0,0.00020924,2]
[388805742,1759375840627,-151.0,0.00020924,2]
[388805744,1759375840636,-151.0,0.00020924,2]
[388805746,1759375840645,-151.0,0.00020924,2]
[388805748,1759375840655,-151.0,0.00020924,2]
[388805750,1759375840663,-151.0,0.00020924,2]
[388805752,1759375840672,-184.784207,0.00020924,2]
[388805754,1759375840681,-713.53585,0.00020924,2]
[388805756,1759375840690,-713.53585,0.00020924,2]
[388805758,1759375840699,-713.53585,0.00020924,2]
[388805760,1759375840708,-713.53585,0.00020924,2]
[388805762,1759375840717,-713.53585,0.00020924,2]
[388805764,1759375840726,-713.53585,0.00020924,2]
[388805766,1759375840735,-713.53585,0.00020924,2]
[388805768,1759375840743,-713.53585,0.00020924,2]
[388805770,1759375840752,-713.53585,0.00020924,2]
[388805772,1759375840761,-713.53585,0.00020924,2]
[388805773,1759375840771,-713.53585,0.00020924,2]
[388805775,1759375840780,-713.53585,0.00020924,2]
[388805777,1759375840789,-713.53585,0.00020924,2]
[388805779,1759375840798,-713.53585,0.00020924,2]
[388805781,1759375840807,-713.53585,0.00020924,2]
[388805783,1759375840817,-713.53585,0.00020924,2]
[388805785,1759375840826,-713.53585,0.00020924,2]
[388805788,1759375840835,-713.53585,0.00020924,2]
[388805789,1759375840845,-713.53585,0.00020924,2]
[388805791,1759375840854,-713.535842,0.00020924,2]
[388805793,1759375840863,-151.0,0.00020924,2]
[388805795,1759375840872,-151.0,0.00020924,2]
[388805797,1759375840881,-258.502505,0.00020924,2]
[388805799,1759375840890,-152.97403,0.00020924,2]
[388805801,1759375840899,-151.0,0.00020924,2]
[388805803,1759375840908,-151.0,0.00020924,2]
[388805805,1759375840918,-151.0,0.00020924,2]
[388805807,1759375840927,-241.572225,0.00020924,2]
[388805809,1759375840938,-151.0,0.00020924,2]
[388805811,1759375840950,-151.0,0.00020924,2]
[388805813,1759375840959,-151.0,0.00020924,2]
[388805815,1759375840968,-151.0,0.00020924,2]
[388805817,1759375840977,-151.0,0.00020924,2]
[388805819,1759375840987,-151.0,0.00020924,2]
[388805821,1759375840996,-151.0,0.00020924,2]
[388805823,1759375841005,-151.0,0.00020924,2]
[388805825,1759375841019,-151.0,0.00020924,2]
[388805827,1759375841029,-151.0,0.00020924,2]
[388805830,1759375841039,-151.0,0.00020924,2]
[388805832,1759375841051,-151.0,0.00020924,2]
[388805833,1759375841060,-151.0,0.00020924,2]
[388805836,1759375841070,-151.0,0.00020924,2]
[388805837,1759375841078,-151.0,0.00020924,2]
[388805839,1759375841087,-151.0,0.00020924,2]
[388805841,1759375841096,-271.022844,0.00020924,2]
[388805843,1759375841105,-151.0,0.00020924,2]
[388805845,1759375841114,-151.0,0.00020924,2]
[388805847,1759375841123,-151.0,0.00020924,2]
[388805849,1759375841132,-151.0,0.00020924,2]
[388805851,1759375841140,-151.0,0.00020924,2]
[388805853,1759375841149,-300.016849,0.00020924,2]
[388805855,1759375841159,-151.0,0.00020924,2]
[388805857,1759375841168,-151.0,0.00020924,2]
[388805859,1759375841177,-151.0,0.00020924,2]
[388805861,1759375841185,-151.0,0.00020924,2]
[388805863,1759375841194,-151.0,0.00020924,2]
[388805865,1759375841203,-162.991232,0.00020924,2]
[388805867,1759375841211,-151.0,0.00020924,2]
[388805869,1759375841220,-263.44777,0.00020924,2]
[388805871,1759375841229,-151.0,0.00020924,2]
[388805873,1759375841237,-169.645521,0.00020924,2]
[388805875,1759375841246,-151.0,0.00020924,2]
[388805877,1759375841256,-151.0,0.00020924,2]
[388805879,1759375841265,-151.0,0.00020924,2]
[388805881,1759375841274,-248.106949,0.00020924,2]
[388805883,1759375841283,-151.0,0.00020924,2]
[388805885,1759375841292,-151.0,0.00020924,2]
[388805887,1759375841301,-151.0,0.00020924,2]
[388805889,1759375841310,-151.7690017,0.00020924,2]
[388805891,1759375841319,-151.0,0.00020924,2]
[388805893,1759375841327,-151.0,0.00020924,2]
[388805895,1759375841336,-151.0,0.00020924,2]
[388805897,1759375841345,-151.0,0.00020924,2]
[388805899,1759375841354,-151.0,0.00020924,2]
[388805901,1759375841362,-151.0,0.00020924,2]
[388805903,1759375841371,-151.0,0.00020924,2]
[388805904,1759375841380,-151.0,0.00020924,2]
[388805906,1759375841389,-151.0,0.00020924,2]
[388805908,1759375841397,-221.810496,0.00020924,2]
[388805910,1759375841406,-151.0,0.00020924,2]
[388805912,1759375841415,-151.0,0.00020924,2]
[388805914,1759375841425,-152.44462235,0.00020924,2]
[388805916,1759375841434,-151.0,0.00020924,2]
[388805918,1759375841443,-151.0,0.00020924,2]
[388805920,1759375841452,-151.0,0.00020924,2]
[388805922,1759375841462,-153.604013,0.00020924,2]
[388805924,1759375841471,-151.0,0.00020924,2]
[388805926,1759375841480,-151.0,0.00020924,2]
[388805929,1759375841490,-151.0,0.00020924,2]
[388805931,1759375841503,-151.0,0.00020924,2]
[388805933,1759375841512,-275.942043,0.00020924,2]
[388805935,1759375841521,-151.0,0.00020924,2]
[388805937,1759375841531,-151.0,0.00020924,2]
[388805938,1759375841542,-151.0,0.00020924,2]
[388805940,1759375841551,-151.0,0.00020924,2]
[388805942,1759375841560,-151.0,0.00020924,2]
[388805944,1759375841569,-151.0,0.00020924,2]
[388805947,1759375841579,-240.851085,0.00020924,2]
[388805949,1759375841589,-500.0,0.00020924,2]
[388805950,1759375841598,-500.0,0.00020924,2]
[388805952,1759375841607,-151.0,0.00020924,2]
[388805954,1759375841619,-151.0,0.00020924,2]
[388805956,1759375841630,-151.0,0.00020924,2]
[388805959,1759375841641,-151.0,0.00020924,2]
[388805961,1759375841651,-151.0,0.00020924,2]
[388805962,1759375841661,-235.241281,0.00020924,2]
[388805964,1759375841670,-218.90518,0.00020924,2]
[388805966,1759375841679,-380.617843,0.00020924,2]
[388805969,1759375841691,-380.617843,0.00020924,2]
[388805970,1759375841700,-151.956438,0.00020924,2]
[388805972,1759375841709,-380.617843,0.00020924,2]
[388805974,1759375841719,-380.617843,0.00020924,2]
[388805976,1759375841728,-380.617843,0.00020924,2]
[388805978,1759375841738,-380.617843,0.00020924,2]
[388805980,1759375841747,-380.617843,0.00020924,2]
[388805982,1759375841756,-380.617843,0.00020924,2]
[388805984,1759375841765,-380.617843,0.00020924,2]
[388805986,1759375841774,-380.617843,0.00020924,2]
[388805988,1759375841783,-380.617843,0.00020924,2]
[388805990,1759375841792,-380.617843,0.00020924,2]
[388805992,1759375841802,-380.617843,0.00020924,2]
[388805994,1759375841811,-380.617843,0.00020924,2]
[388805996,1759375841821,-380.617843,0.00020924,2]
[388805998,1759375841831,-380.617843,0.00020924,2]
[388806000,1759375841840,-151.0,0.00020924,2]
[388806002,1759375841849,-380.617843,0.00020924,2]
[388806004,1759375841858,-151.0,0.00020924,2]
[388806006,1759375841867,-380.617843,0.00020924,2]
[388806008,1759375841876,-151.0,0.00020924,2]
[388806011,1759375841885,-380.617843,0.00020924,2]
[388806012,1759375841895,-151.0,0.00020924,2]
[388806015,1759375841904,-380.61784793,0.00020924,2]
[388806017,1759375841913,-151.0,0.00020924,2]
[388806019,1759375841923,-250.0,0.00020932,2]
[388806021,1759375841934,-160.0,0.00020934,2]
[388806023,1759375841942,-160.0,0.00020934,2]
[388806025,1759375841951,-509.83073558,0.00020973,2]
[388806027,1759375841960,-500.0,0.00020973,2]
[388806028,1759375841969,-500.0,0.00020973,2]
[388806030,1759375841978,-500.0,0.00020973,2]
[388806032,1759375841987,-500.0,0.00020973,2]
[388806034,1759375841995,-500.0,0.00020973,2]
[388806036,1759375842005,-500.0,0.00020973,2]
[388806038,1759375842014,-504.6469514,0.00020973,2]
[388806040,1759375842023,-512.48433995,0.00020973,2]
[388806042,1759375842033,-500.0,0.00020973,2]
[388806054,1759375842139,-500.0,0.00020973,2]
[388806056,1759375842148,-303.14886399,0.00020973,2]
[388806058,1759375842157,-501.43707526,0.00020973,2]
[388806060,1759375842166,-500.99839701,0.00020973,2]
[388806062,1759375842175,-500.71284963,0.00020973,2]
[388806064,1759375842184,-500.77721047,0.00020973,2]
[388806066,1759375842193,-501.33730105,0.00020973,2]
[388806068,1759375842204,-501.19103415,0.00020973,2]
[388806071,1759375842214,-502.64413986,0.00020973,2]
[388806074,1759375842224,-502.4438723,0.00020973,2]
[388806078,1759375842233,-501.86763085,0.00020973,2]
[388806081,1759375842243,-463.35229626,0.00020973,2]
[388806083,1759375842252,-511.90518432,0.00020973,2]
[388806085,1759375842261,-500.0,0.00020973,2]
[388806087,1759375842271,-500.0,0.00020973,2]
[388806089,1759375842280,-500.0,0.00020973,2]
[388806091,1759375842289,-503.56110543,0.00020973,2]
[388806093,1759375842298,-500.0,0.00020973,2]
[388806095,1759375842307,-500.0,0.00020973,2]
[388806097,1759375842316,-11335.87395288,0.0002099,2]
[388806099,1759375842325,-273.35077023,0.00021,2]
[388806101,1759375842333,-204.49646066,0.00021,2]
[388806103,1759375842343,-3206.2591212,0.00021008,2]
[388806105,1759375842351,-5373.1338764,0.00021008,2]
[388806107,1759375842361,-5159.18894494,0.00021024,2]
[388806109,1759375842370,-564.1,0.00021114,3]
[388806111,1759375842378,-500.0,0.00021185,2]
[388806113,1759375842388,-151.0,0.00021198,2]
[388806116,1759375842397,-151.0,0.00021198,2]
[388806118,1759375842407,-151.0,0.00021198,2]
[388806121,1759375842416,-151.0,0.00021198,2]
[388806124,1759375842424,-151.0,0.00021198,2]
[388806127,1759375842434,-500.0,0.00021198,2]
[388806130,1759375842443,-151.0,0.00021198,2]
[388806133,1759375842452,-176.59419669,0.00021198,2]
[388806136,1759375842461,-151.0,0.00021198,2]
[388806139,1759375842470,-151.73323949,0.00021198,2]
[388806141,1759375842479,-219.93735501,0.00021198,2]
[388806143,1759375842489,-159.26058098,0.00021198,2]
[388806145,1759375842498,-151.0,0.00021198,2]
[388806147,1759375842511,-151.0,0.00021198,2]
[388806149,1759375842520,-151.0,0.00021198,2]
[388806151,1759375842529,-500.0,0.00021198,2]
[388806153,1759375842538,-500.0,0.00021198,2]
[388806155,1759375842550,-151.0,0.00021198,2]
[388806157,1759375842558,-300.0,0.00021341,20]
[388806159,1759375842568,-300.0,0.00021341,20]
[388806161,1759375842578,-150.0,0.000214,2]
[388806163,1759375842587,-1184.696356,0.000214,2]
[388806165,1759375842595,-500.0,0.00021459,2]
[388806167,1759375842604,-199.33555548,0.00021472,2]
[388806169,1759375842614,-200.92495861,0.00021472,2]
[388806171,1759375842623,-199.66740267,0.00021472,2]
[388806173,1759375842632,-199.15502948,0.00021472,2]
[388806175,1759375842642,-201.25091563,0.00021472,2]
[388806177,1759375842652,-500.0,0.00021472,2]
[388806179,1759375842661,-151.0,0.00021472,2]
[388806181,1759375842670,-151.0,0.00021472,2]
[388806183,1759375842680,-199.88178958,0.00021472,2]
[388806185,1759375842689,-272.53845342,0.00021472,2]
[388806187,1759375842699,-151.96927052,0.00021472,2]
[388806189,1759375842708,-489.85597484,0.00021472,2]
[388806191,1759375842716,-500.0,0.00021472,2]
[388806193,1759375842725,-151.0,0.00021472,2]
[388806195,1759375842734,-409.29684884,0.00021521,2]
[388806197,1759375842745,-502.17481155,0.00021521,2]
[388806199,1759375842754,-1002.71436461,0.00021521,2]
[388806201,1759375842763,-156.94729294,0.00021521,2]
[388806203,1759375842772,-504.3031916,0.00021521,2]
[388806205,1759375842781,-503.15310287,0.00021521,2]
[388806207,1759375842790,-1007.57339348,0.00021521,2]
[388806209,1759375842799,-1000.0,0.00021521,2]
[388806211,1759375842808,-502.17830285,0.00021521,2]
[388806213,1759375842818,-1000.0,0.00021521,2]
[388806215,1759375842827,-1000.0,0.00021521,2]
[388806217,1759375842836,-1005.98916651,0.00021521,2]
[388806219,1759375842847,-894.70114169,0.00021521,2]
[388806221,1759375842856,-95724.20123221,0.00021688,2]
[388806223,1759375842865,-500.0,0.00021733,2]
[388806225,1759375842874,-500.0,0.00021746,2]
[388806227,1759375842883,-200.19353915,0.00021746,2]
[388806229,1759375842892,-201.13027473,0.00021746,2]
[388806231,1759375842902,-416.88837584,0.00021746,2]
[388806233,1759375842910,-151.0,0.00021746,2]
[388806235,1759375842919,-151.0,0.00021918,2]
[388806237,1759375842929,-151.0,0.00021918,2]
[388806239,1759375842938,-153.671813,0.00021918,2]
[388806241,1759375842948,-177.632646,0.00021918,2]
[388806243,1759375842957,-151.0,0.00021918,2]
[388806245,1759375842966,-151.0,0.00021918,2]
[388806247,1759375842974,-151.0,0.00021918,2]
[388806249,1759375842983,-151.0,0.00021918,2]
[388806251,1759375842992,-151.0,0.00021918,2]
[388806253,1759375843002,-151.0,0.00021918,2]
[388806256,1759375843013,-151.0,0.00021918,2]
[388806259,1759375843022,-151.0,0.00021918,2]
[388806261,1759375843031,-151.0,0.00021918,2]
[388806263,1759375843040,-151.0,0.00021918,2]
[388806265,1759375843050,-151.0,0.00021918,2]
[388806267,1759375843059,-151.0,0.00021918,2]
[388806269,1759375843067,-151.0,0.00021918,2]
[388806271,1759375843076,-151.0,0.00021918,2]
[388806273,1759375843086,-151.0,0.00021918,2]
[388806275,1759375843095,-151.0,0.00021918,2]
[388806278,1759375843104,-151.0,0.00021918,2]
[388806281,1759375843113,-151.0,0.00021918,2]
[388806283,1759375843122,-210.649831,0.00021918,2]
[388806285,1759375843132,-150.0,0.00021918,2]
[388806287,1759375843141,-150.0,0.00021918,2]
[388806289,1759375843150,-150.0,0.00021918,2]
[388806291,1759375843159,-150.0,0.00021918,2]
[388806293,1759375843168,-150.0,0.00021918,2]
[388806295,1759375843178,-150.0,0.00021918,2]
[388806297,1759375843187,-150.0,0.00021918,2]
[388806299,1759375843196,-150.0,0.00021918,2]
[388806301,1759375843205,-150.0,0.00021918,2]
[388806303,1759375843215,-150.0,0.00021918,2]
[388806305,1759375843224,-150.0,0.00021918,2]
[388806307,1759375843233,-150.0,0.00021918,2]
[388806309,1759375843242,-150.0,0.00021918,2]
[388806311,1759375843251,-150.0,0.00021918,2]
[388806313,1759375843260,-150.0,0.00021918,2]
[388806315,1759375843268,-150.0,0.00021918,2]
[388806316,1759375843278,-150.0,0.00021918,2]
[388806319,1759375843287,-150.0,0.00021918,2]
[388806320,1759375843296,-150.0,0.00021918,2]
[388806322,1759375843306,-150.0,0.00021918,2]
[388806324,1759375843314,-150.0,0.00021918,2]
[388806326,1759375843323,-150.0,0.00021918,2]
[388806328,1759375843332,-150.0,0.00021918,2]
[388806330,1759375843341,-150.0,0.00021918,2]
[388806332,1759375843351,-321.5054306,0.00021918,2]
[388806334,1759375843360,-586.7981431,0.00021918,2]
[388806336,1759375843368,-150.0,0.00021918,2]
[388806338,1759375843377,-150.0,0.00021918,2]
[388806340,1759375843387,-5159.18894493,0.00021938,2]
[388806342,1759375843396,-7273.01,0.00022,2]
[388806344,1759375843407,-500.0,0.0002202,2]
[388806346,1759375843416,-151.0,0.0002202,2]
[388806348,1759375843425,-500.0,0.00022068,2]
[388806350,1759375843434,-442.58,0.00022093,7]
[388806352,1759375843443,-207.0,0.00022137,6]
[388806354,1759375843452,-364.28004562,0.00022145,2]
[388806356,1759375843461,-376.04,0.00022284,3]
[388806358,1759375843470,-500.0,0.00022294,2]
[388806360,1759375843479,-230.70321073,0.00022294,2]
[388806362,1759375843489,-150.077,0.00022424,2]
[388806364,1759375843500,-189.473,0.00022424,2]
[388806366,1759375843509,-1091.984,0.00022434,2]
[388806368,1759375843518,-2157.0,0.00022434,2]
[388806370,1759375843527,-630.0,0.00022434,2]
[388806372,1759375843536,-500.0,0.00022568,2]
[388806374,1759375843547,-587.0,0.00022645,2]
[388806376,1759375843556,-218.09601433,0.00022826,2]
[388806378,1759375843565,-500.0,0.00022842,2]
[388806380,1759375843575,-5159.18894493,0.00022852,2]
[388806382,1759375843590,-160.0,0.00023,2]
[388806384,1759375843599,-5000.0,0.00023111,2]
[388806386,1759375843608,-500.0,0.00023116,2]
[388806388,1759375843618,-600.0,0.00023286,20]
[388806390,1759375843627,-150.0,0.00023288,2]
[388806392,1759375843636,-150.0,0.00023288,2]
[388806394,1759375843645,-361.0,0.00023294,2]
[388806396,1759375843654,-361.0,0.00023342,2]
[388806398,1759375843663,-500.0,0.0002339,2]
[388806400,1759375843671,-361.0,0.00023408,2]
[388806402,1759375843680,-5373.1338764,0.00023418,2]
[388806404,1759375843689,-361.0,0.00023443,2]
[388806406,1759375843699,-361.0,0.00023446,2]
[388806408,1759375843708,-361.0,0.00023463,2]
[388806410,1759375843717,-361.0,0.00023466,2]
[388806412,1759375843726,-361.0,0.00023473,2]
[388806414,1759375843734,-361.0,0.00023518,2]
[388806416,1759375843743,-600.0,0.00023519,2]
[388806418,1759375843752,-160.0,0.0002355,2]
[388806420,1759375843762,-159.47398933,0.00023589,2]
[388806422,1759375843771,-361.0,0.00023595,2]
[388806424,1759375843780,-151.0,0.000236,6]
[388806426,1759375843789,-7273.01,0.000236,2]
[388806428,1759375843798,-500.0,0.00023664,2]
[388806430,1759375843807,-151.0,0.000237,10]
[388806432,1759375843816,-600.0,0.00023764,2]
[388806434,1759375843825,-5159.18894493,0.00023765,2]
[388806436,1759375843834,-361.0,0.00023783,2]
[388806438,1759375843843,-151.0,0.000238,6]
[388806440,1759375843852,-361.0,0.00023817,2]